[Event "Warsaw Chess Open-B 2022"]
[Site "Warsaw"]
[Date "2022.07.19"]
[Round "2.1"]
[White "Dropia, Rafal"]
[Black "Kaczmarska, Joanna"]
[Result "0-1"]
[ECO "A45"]
[WhiteElo "1624"]
[BlackElo "1965"]
[Annotator "TA"]
[PlyCount "80"]
[EventDate "2022.07.18"]
[EventType "swiss"]
[EventCountry "POL"]
[SourceTitle "playchess.com"]
[Source "ChessBase"]
[SourceQuality "1"]
[TimeControl "40/5400+30:1800+30"]

{[%evp 9,80,-23,-24,-22,-24,-31,-8,-30,0,0,12,-47,-41,-133,-129,-114,-97,-116,-106,-114,-109,-92,-70,-104,-77,-68,-98,-114,-114,-126,-91,-100,-97,-208,-211,-198,-188,-247,-251,-315,-215,-277,-152,-152,-152,-344,-335,-344,-332,-408,-360,-377,-260,-383,-224,-250,-168,-279,-212,-1697,-1640,-1488,-1416,-5385,-2741,-4150,-3913,-5373,-4966,-1999,-2688,-1716,-1682]} 1. d4 {[%emt 0:00:02]} Nf6 {[%emt 0:00:06]} 2. Nc3 {[%emt 0:00:06]} d5 {[%emt 0:02:00]} 3. Bf4 {[%emt 0:00:09]} a6 {[%emt 0:02:04]} 4. e3 {[%emt 0:00:41]} e6 {[%emt 0:01:14]} 5. Bd3 {[%emt 0:02:48]} c5 {[%emt 0:00:24]} 6. Nf3 {[%emt 0:00:34] D00: 1 d4 d5: Unusual lines.} c4 {[%emt 0:02:07]} 7. Be2 {[%emt 0:00:09]} Bb4 {[%emt 0:02:46]} 8. Nd2 {[%emt 0:06:38] The position is equal.} Bxc3 {[%emt 0:09:31]} 9. bxc3 {[%emt 0:00:01]} Qa5 {[%emt 0:00:20] [#]} 10. g4 $146 {[%emt 0:03:06]} (10. Bd6 $11) ({Predecessor:} 10. O-O Qxc3 11. Bd6 Nc6 12. Rb1 Qa5 13. e4 Qd8 14. e5 Nxd4 15. Bc5 Nxe2+ 16. Qxe2 {½-½ (67) Zegarac,V (1819)-Lozajic,M (1844) Subotica 2014}) 10... Qxc3 $15 {[%emt 0:01:06] Hoping for ...Ne4.} 11. f3 {[%emt 0:01:53] Against Ne4} (11. Kf1 $15) 11... Nc6 $17 {[%emt 0:03:07]} 12. Kf2 {[%emt 0:01:06]} h5 {[%emt 0:10:31]} 13. g5 {[%emt 0:05:35]} Ng8 {[%emt 0:04:39] Black is more active.} 14. h4 {[%emt 0:01:43]} Nge7 {[%emt 0:00:19]} 15. Nf1 {[%emt 0:00:36]} Bd7 {[%emt 0:08:02][%cal Bc8d7,Bd7e8,Be8g6][%mdl 32]} 16. Ng3 {[%emt 0:05:00]} f6 {[%emt 0:09:43]} 17. gxf6 {[%emt 0:02:08]} gxf6 {[%emt 0:00:06]} 18. Bd6 {[%emt 0:11:57]} O-O-O {[%emt 0:05:56]} 19. Rb1 {[%emt 0:06:29]} Be8 {[%emt 0:04:27]} 20. Bc5 {[%emt 0:00:34] [#]} Bg6 $1 {[%emt 0:02:11]} 21. Rc1 {[%emt 0:05:13]} (21. Qc1 $17 {is a better defense.} Nf5 22. Nxf5 Bxf5 23. Qb2 Qxb2 24. Rxb2) 21... Nf5 $19 {[%emt 0:05:35]} 22. Nxf5 {[%emt 0:00:37]} Bxf5 {[%emt 0:00:05]} 23. Rg1 {[%emt 0:04:09]} (23. Qe1 $142 Qb2 24. Qd2) 23... Rhg8 {[%emt 0:07:04]} 24. f4 {[%emt 0:02:48]} Bg4 {[%emt 0:01:17]} 25. Bxg4 {[%emt 0:00:15]} hxg4 {[%emt 0:03:00]} ({Better is} 25... Rxg4 $19 26. Rxg4 hxg4) 26. Qe2 {[%emt 0:08:01]} f5 {[%emt 0:01:15] Strongly threatening ...Qa5.} 27. Rb1 $2 {[%emt 0:02:04] This move loses the game for White.} (27. Qe1 $17 {was worth a try.} Qxe1+ 28. Rgxe1) 27... Rd7 {[%emt 0:00:53]} 28. Kg3 {[%emt 0:00:50]} Rh7 {[%emt 0:03:32]} 29. Rb6 {[%emt 0:03:55]} Rgh8 {[%emt 0:00:29] Chess con chili.} 30. Rh1 {[%emt 0:00:12]} Qa5 {[%emt 0:00:50] Threatens to win with ...Rh6.} 31. a3 {[%emt 0:01:05]} (31. Qd1 {might work better.}) 31... Qa4 {[%emt 0:00:36]} (31... Rh6 $142 {...Nb8 is the strong threat.} 32. Rbb1 Qd8) 32. Qd2 {[%emt 0:02:26]} Nd8 {[%emt 0:03:32]} 33. Rh2 {[%emt 0:08:10]} (33. Bd6 $142) 33... Qd7 {[%emt 0:00:59]} 34. Qc3 $2 {[%emt 0:03:01] [#]} (34. Rd6 Qe8 35. Qa5) 34... Rxh4 $3 {[%emt 0:04:39][%mdl 512] Black is clearly winning.} 35. Rxh4 {[%emt 0:00:33]} Rxh4 {[%emt 0:00:05]} 36. Kxh4 {[%emt 0:01:08]} Qh7+ {[%emt 0:00:04]} 37. Kg3 {[%emt 0:00:07]} Qh3+ {[%emt 0:00:08]} 38. Kf2 {[%emt 0:00:04]} g3+ {[%emt 0:00:24][%cal Bg4g3,Bg3g2][%mdl 32]} 39. Ke2 {[%emt 0:01:54]} Qh2+ {[%emt 0:02:16]} 40. Kd1 {[%emt 0:03:37]} g2 {[%emt 0:00:21] Weighted Error Value: White=0.84/Black=0.23 (precise)} 0-1

[Event "Warsaw Chess Open-B 2022"]
[Site "Warsaw"]
[Date "2022.07.19"]
[Round "2.2"]
[White "Zalucka, Emilia"]
[Black "Kowalczyk, Adam"]
[Result "0-1"]
[ECO "B21"]
[WhiteElo "1583"]
[BlackElo "1944"]
[Annotator "TA"]
[PlyCount "112"]
[EventDate "2022.07.18"]
[EventType "swiss"]
[EventCountry "POL"]
[SourceTitle "playchess.com"]
[Source "ChessBase"]
[SourceQuality "1"]
[TimeControl "40/5400+30:1800+30"]

{[%evp 9,112,-14,-12,-7,59,12,25,10,10,9,20,18,21,0,20,0,0,0,0,-26,-24,-54,-47,-43,-53,-74,-56,-147,-77,-75,-58,-209,-206,-192,-200,-271,-264,-336,-342,-392,-320,-378,-312,-325,-308,-312,-310,-315,-306,-349,-340,-334,-342,-339,-315,-512,-431,-507,-425,-414,-415,-368,-242,-404,-267,-264,-262,-295,-206,-247,-247,-551,-568,-595,-531,-541,-527,-407,-200,-294,-257,-256,-206,-206,-206,-206,-206,-206,-206,-206,-206,-206,-206,-206,-206,-206,-206,-227,-212,-212,-212,-212,-209,-234,-225]} 1. e4 {[%emt 0:00:02]} c5 {[%emt 0:00:05]} 2. f4 {[%emt 0:00:20]} d5 {[%emt 0:02:35]} 3. Bb5+ {[%emt 0:00:17]} Nc6 {[%emt 0:02:09]} 4. Bxc6+ {[%emt 0:00:25]} bxc6 {[%emt 0:00:02]} 5. d3 {[%emt 0:01:18]} dxe4 {[%emt 0:11:48]} 6. dxe4 {[%emt 0:00:06]} Qb6 {[%emt 0:00:04]} (6... Qxd1+ $11 7. Kxd1 g6) 7. Qf3 {[%emt 0:24:44]} (7. Nf3 $14) 7... Nf6 {[%emt 0:15:09][%cal Oe7e5]} 8. h3 {[%emt 0:03:33] White has an edge.} Ba6 {[%emt 0:04:51][%cal Oe7e5]} 9. Ne2 {[%emt 0:04:22]} c4 {[%emt 0:01:28]} 10. Nbc3 {[%emt 0:06:24]} e6 $1 {[%emt 0:00:21]} 11. a3 {[%emt 0:06:53]} Bc5 {[%emt 0:13:31]} 12. g4 {[%emt 0:07:28]} h6 {[%emt 0:08:56]} 13. Kf1 {[%emt 0:06:51]} Be7 {[%emt 0:01:00]} 14. Qe3 {[%emt 0:06:29]} c5 {[%emt 0:01:46]} ({But not} 14... Bc5 15. Qf3 $14) 15. Kf2 {[%emt 0:04:01]} Rd8 {[%emt 0:00:30]} 16. a4 {[%emt 0:02:34]} Bb7 {[%emt 0:07:34][%cal Od8d4]} 17. Rg1 {[%emt 0:02:38]} Bc6 {[%emt 0:01:11] 0x0.001f20f580ebdp-1022s more active pieces.} 18. a5 {[%emt 0:04:35]} (18. Re1 $15) 18... Qb8 {[%emt 0:00:27]} (18... Qb7 $142 {[%cal Rf6e4]} 19. a6 Qb8) 19. Ng3 $17 {[%emt 0:02:35]} a6 {[%emt 0:00:48]} 20. Rd1 $2 {[%emt 0:07:55] [#] Now White is beyond hope.} (20. Re1 $15) 20... Rxd1 $19 {[%emt 0:05:59]} 21. Nxd1 {[%emt 0:00:05]} h5 {[%emt 0:01:25][%cal Bh6h5,Bh5h4][%mdl 32]} 22. g5 {[%emt 0:01:25]} h4 23. Ne2 {[%emt 0:03:05]} Nxe4+ {[%emt 0:00:26]} 24. Kg1 {[%emt 0:01:49]} e5 {[%emt 0:03:41]} 25. Ndc3 {[%emt 0:02:01]} exf4 {[%emt 0:03:22]} 26. Qf3 {[%emt 0:00:24]} Qb7 {[%emt 0:00:12]} ({Wrong is} 26... Bxg5 $2 27. Nxe4 Qe5 28. Bxf4 (28. N2c3 $2 f5 $19) 28... Bxe4 29. Bxe5 $19) 27. Nxe4 {[%emt 0:00:52]} Bxe4 {[%emt 0:00:06][%cal Bc6e4,Be4c2,Bc2b3][%mdl 32]} 28. Qxf4 {[%emt 0:00:13]} Bxc2 {[%emt 0:05:40] A strong pair of Bishops.} 29. Qxc4 {[%emt 0:00:20]} Bb3 {[%emt 0:00:09]} 30. Qc3 {[%emt 0:00:37]} O-O {[%emt 0:05:01]} 31. Bd2 {[%emt 0:00:57]} Rd8 {[%emt 0:01:18]} 32. Re1 $2 {[%emt 0:00:30]} (32. Rf1) 32... Qd5 {[%emt 0:00:41]} 33. Bc1 {[%emt 0:00:25]} Bxg5 {[%emt 0:02:18]} 34. Nf4 {[%emt 0:00:06]} Bxf4 {[%emt 0:00:25]} 35. Bxf4 {[%emt 0:00:49]} Qd4+ {[%emt 0:00:53]} 36. Be3 $2 {[%emt 0:00:08]} (36. Qxd4 {was worth a try.} cxd4 37. Re7) 36... Qxc3 {[%emt 0:00:05]} 37. bxc3 {[%emt 0:00:21][%mdl 4096] Endgame KRB-KRB} Rd3 {[%emt 0:00:56]} 38. Bxc5 Rxc3 39. Re8+ {[%emt 0:01:02]} Kh7 {[%emt 0:00:35]} 40. Bd4 $2 {[%emt 0:00:26]} (40. Bf2) 40... Rxh3 {[%emt 0:00:24]} 41. Re4 {[%emt 0:31:15]} Be6 {[%emt 0:31:14] Prevents Rg4.} 42. Re5 {[%emt 0:00:24]} Kg6 {[%emt 0:01:50]} 43. Bf2 {[%cal Bd4f2,Bf2h4,Bh4g5][%mdl 32]} Kh6 (43... Kf6 $142 44. Bd4 Rd3) 44. Kg2 {[%emt 0:00:50]} (44. Be3+ $142 Kg6 45. Bf2) 44... Rd3 {[%emt 0:00:48]} 45. Bxh4 {[%emt 0:00:32]} Rd2+ {[%emt 0:00:41]} 46. Kg3 {[%emt 0:00:28] Black is clearly better.} Rd4 {[%emt 0:00:16] [#] Strongly threatening ...Rg4+.} 47. Bg5+ {[%emt 0:00:33]} Kg6 {[%emt 0:00:07] Hoping for ...Rg4+.} 48. Bf4 {[%emt 0:00:41]} Bf5 {[%emt 0:00:41]} 49. Rc5 {[%emt 0:00:24]} f6 {[%emt 0:00:31]} 50. Be3 {[%emt 0:00:38]} Rg4+ {[%emt 0:00:11]} 51. Kf3 {[%emt 0:00:18]} Ra4 {[%emt 0:00:08]} 52. Kf2 {[%emt 0:00:39]} Bd3 {[%emt 0:00:19]} 53. Rd5 {[%emt 0:00:33]} Bc4 {[%emt 0:00:33]} 54. Rc5 {[%emt 0:00:33]} Ra2+ {[%emt 0:00:10]} 55. Kf3 {[%emt 0:00:34]} Bb5 {[%emt 0:00:08]} 56. Bf4 {[%emt 0:00:26]} Rxa5 {[%emt 0:00:14] Weighted Error Value: White=0.37/Black=0.25 (precise)} 0-1

[Event "Warsaw Chess Open-B 2022"]
[Site "Warsaw"]
[Date "2022.07.19"]
[Round "2.3"]
[White "Smykalo, Severyn"]
[Black "Shved, Dmytro"]
[Result "1/2-1/2"]
[ECO "E04"]
[WhiteElo "1921"]
[BlackElo "1579"]
[Annotator "TA"]
[PlyCount "51"]
[EventDate "2022.07.18"]
[EventType "swiss"]
[EventCountry "POL"]
[SourceTitle "playchess.com"]
[Source "ChessBase"]
[SourceQuality "1"]
[TimeControl "40/5400+30:1800+30"]

{[%evp 10,51,41,16,4,7,9,6,24,10,14,10,42,44,29,29,36,35,53,26,91,-7,-25,-14,72,70,83,85,113,131,301,54,49,52,74,0,0,0,0,0,0,-15,-6,-23]} 1. d4 {[%emt 0:01:25]} Nf6 {[%emt 0:00:15]} 2. c4 {[%emt 0:00:15]} e6 {[%emt 0:00:09]} 3. g3 {[%emt 0:00:51]} d5 {[%emt 0:00:22]} 4. Nf3 {[%emt 0:00:20]} dxc4 {[%emt 0:00:16]} 5. Bg2 {[%emt 0:00:46]} c5 {[%emt 0:00:38]} 6. Qa4+ {[%emt 0:02:52]} Bd7 $1 {[%emt 0:00:48][%cal Bc8d7,Bd7c6,Bc6e4][%mdl 32] 6...Bd7 scores better than 6...Nc6. E04: Open Catalan: 5 Nf3.} 7. Qxc4 {[%emt 0:00:18]} b5 {[%emt 0:02:52]} 8. Qc2 {[%emt 0:00:50]} Bc6 {[%emt 0:01:50]} 9. dxc5 {[%emt 0:03:58]} Nbd7 {[%emt 0:02:34]} 10. O-O {[%emt 0:05:34]} ({Of course not} 10. b4 a5 $15) 10... Bxc5 {[%emt 0:09:39] [#]} (10... Be4 $5 {[%cal Re4c2]} 11. Qb3 a6 $11) 11. b4 $146 {[%emt 0:02:27]} ({Predecessor:} 11. Be3 Be4 12. Qb3 Bd5 13. Qxb5 Bxe3 14. fxe3 Rb8 15. Qd3 Rxb2 16. Nc3 Ba8 17. e4 {0-1 (27) Pelts,P (2245)-Karklins,A (2300) Illinois 1988}) 11... Be4 {[%emt 0:02:08]} 12. Qb2 {[%emt 0:00:16]} Bb6 {[%emt 0:02:16]} 13. Nc3 {[%emt 0:00:20]} Bc6 {[%emt 0:01:13]} 14. Bf4 {[%emt 0:02:07]} Qe7 {[%emt 0:13:47]} (14... O-O $11) 15. Ne5 {[%emt 0:11:37]} (15. Rad1 $16) 15... Bxg2 $1 $11 {[%emt 0:11:09]} 16. Kxg2 {[%emt 0:00:41] [#] Threatens to win with Nc6.} Nxe5 {[%emt 0:00:21]} (16... Nh5 $1 $11 {remains equal.}) 17. Bxe5 $16 {[%emt 0:00:32]} a6 {[%emt 0:01:24]} 18. a4 {[%emt 0:05:21]} bxa4 {[%emt 0:04:08]} 19. Nxa4 {[%emt 0:01:28]} Bc7 {[%emt 0:01:01] [#]} (19... Bd8 $16 {was worth a try.} 20. Rfc1 O-O) 20. Nc5 $2 {[%emt 0:07:37]} (20. Qc2 $1 $18 Bxe5 21. Qc6+ Nd7 22. Qxa8+ Qd8 23. Qxd8+ (23. Qxa6 Bxa1 24. Rxa1 Ke7 $16) 23... Kxd8 24. Ra2) 20... Bxe5 $1 $14 {[%emt 0:03:05]} 21. Qxe5 {[%emt 0:00:03] Strongly threatening b5.} O-O {[%emt 0:00:27]} 22. f3 {[%emt 0:00:57] 0x0.0002de0997c5dp-1022s more active pieces. The black rooks are badly placed.} (22. Rfd1 $16) 22... Nd5 $11 {[%emt 0:04:04] The position is equal.} 23. Ra4 {[%emt 0:07:11]} a5 {[%emt 0:01:09]} 24. Rfa1 {[%emt 0:02:07]} Nxb4 {[%emt 0:01:07]} 25. Nb3 {[%emt 0:00:20]} ({Wrong is} 25. Rxa5 $2 Nc6 26. Qc3 Nxa5 27. Rxa5 Rxa5 28. Qxa5 Qg5 $19) 25... Nd5 {[%emt 0:16:59]} 26. Nxa5 {[%emt 0:01:38] Weighted Error Value: White=0.49/Black=0.22 (precise)} 1/2-1/2

[Event "Warsaw Chess Open-B 2022"]
[Site "Warsaw"]
[Date "2022.07.19"]
[Round "2.4"]
[White "Arciszewska, Zuzanna"]
[Black "Kaminski, Maciej"]
[Result "1-0"]
[ECO "E98"]
[WhiteElo "1574"]
[BlackElo "1918"]
[Annotator "TA"]
[PlyCount "71"]
[EventDate "2022.07.18"]
[EventType "swiss"]
[EventCountry "POL"]
[SourceTitle "playchess.com"]
[Source "ChessBase"]
[SourceQuality "1"]
[TimeControl "40/5400+30:1800+30"]

{[%evp 19,71,46,46,10,60,27,59,-36,-18,-26,49,49,50,46,77,35,231,241,217,203,211,214,202,197,371,381,437,435,434,443,431,426,597,475,463,458,647,652,644,637,780,771,989,943,2170,2168,29998,29995,29995,29995,29995,29996,29996,29993]} 1. d4 {[%emt 0:00:02]} Nf6 {[%emt 0:00:24]} 2. Nf3 {[%emt 0:00:22]} g6 {[%emt 0:00:49]} 3. c4 {[%emt 0:00:15]} Bg7 {[%emt 0:00:07]} 4. Nc3 {[%emt 0:00:22]} O-O {[%emt 0:00:09]} 5. e4 {[%emt 0:00:21]} d6 {[%emt 0:00:07]} 6. Be2 {[%emt 0:00:23]} e5 {[%emt 0:00:08]} 7. O-O {[%emt 0:01:33]} Nc6 {[%emt 0:05:11]} 8. d5 {[%emt 0:05:25]} Ne7 {[%emt 0:00:19]} 9. Ne1 {[%emt 0:06:29]} Nd7 {[%emt 0:00:31]} 10. Nd3 {[%emt 0:00:52]} f5 {[%emt 0:00:38]} 11. Rb1 {[%emt 0:03:33] [#] E98: King's Indian: Classical Main Line: 9 Ne1.} c5 $146 {[%emt 0:10:28]} (11... fxe4 $11 12. Nxe4 Nf6 13. Nxf6+ Bxf6) ({Predecessor:} 11... Nf6 12. f3 f4 13. b4 g5 14. c5 Rf7 15. Bd2 Bf8 16. Nf2 h5 17. h3 Rg7 18. Be1 Ng6 19. cxd6 Bxd6 {1-0 (61) Rohde,W (2185)-Koenig,F (1949) Berlin 2012}) 12. dxc6 {[%emt 0:10:53]} bxc6 {[%emt 0:05:17]} 13. Nb4 {[%emt 0:06:14]} ({Better is} 13. c5 $1 $14 d5 14. exd5 cxd5 15. Bg5) 13... Qc7 {[%emt 0:05:25]} 14. Bg5 {[%emt 0:04:46]} Nf6 {[%emt 0:11:15]} ({Black should try} 14... Bf6 $11 15. Bh6 Rf7) 15. c5 $1 $14 {[%emt 0:05:17]} dxc5 {[%emt 0:03:43]} 16. Nd3 $36 {[%emt 0:00:39][%mdl 2048] White has the initiative.} Qd6 {[%emt 0:09:12]} 17. Be3 {[%emt 0:01:54]} f4 $2 {[%emt 0:21:02] This move loses the game for Black.} ({Black should play} 17... fxe4 $14 18. Bxc5 (18. Nxc5 Ned5 $11) 18... Qe6) 18. Bxc5 $18 {[%emt 0:02:20]} Qe6 {[%emt 0:00:12]} 19. Qb3 {[%emt 0:02:06]} Re8 {[%emt 0:07:23]} 20. Nxe5 {[%emt 0:05:15] Black must now prevent Bc4.} (20. Qxe6+ $6 Bxe6 21. Nb4 (21. Nxe5 Nxe4 22. Nxe4 Bxe5 $11) 21... Nd7) 20... Qxb3 {[%emt 0:02:08]} 21. axb3 {[%emt 0:00:10] And now Bc4+ would win.} Nxe4 $2 {[%emt 0:00:27] [#]} (21... Be6 22. Bxe7 (22. Bc4 Bxc4 23. Nxc4 Nd7 $16) 22... Rxe7 23. Nxc6 Ree8) 22. Bc4+ $1 {[%emt 0:00:38]} (22. Nxe4 Bxe5 23. Bc4+ Nd5 $16) 22... Kf8 {[%emt 0:00:46]} 23. Nxg6+ {[%emt 0:00:29]} ({Resist} 23. Nxe4 Bxe5 24. Rbe1 Bf5 $18) 23... hxg6 {[%emt 0:00:28]} 24. Nxe4 {[%emt 0:00:02]} Bf5 {[%emt 0:01:21]} 25. Rbe1 {[%emt 0:02:40]} Be5 {[%emt 0:03:02]} (25... Rad8 {was necessary.} 26. Nd6 Bd4 27. Bxd4 Rxd6) 26. Ng5 {[%emt 0:01:52]} Bf6 {[%emt 0:02:50]} 27. Ne6+ {[%emt 0:01:02]} Bxe6 {[%emt 0:00:15]} (27... Kf7 $142 28. Nc7+ Nd5) 28. Rxe6 {[%emt 0:00:03]} ({Not} 28. Bxe6 Kg7 29. Re4 g5 $16) 28... Kg7 {[%emt 0:06:24]} 29. Rfe1 {[%emt 0:00:11]} Red8 {[%emt 0:03:24]} 30. Bxe7 {[%emt 0:00:20]} Bxe7 {[%emt 0:00:02]} 31. Rxe7+ {[%emt 0:00:14]} Kf6 {[%emt 0:00:05]} 32. h4 {[%emt 0:00:25][%csl Gc4][%cal Re7f7] [#]} Kf5 {[%emt 0:00:32]} 33. R1e5+ {[%emt 0:00:49] White mates.} Kf6 {[%emt 0:00:45]} 34. R5e6+ {[%emt 0:00:08]} Kf5 {[%emt 0:00:06]} 35. Rf7+ {[%emt 0:00:06]} Kg4 {[%emt 0:00:32]} 36. Rxg6+ {[%emt 0:01:17] Weighted Error Value: White=0.18 (very precise) /Black=0.82} 1-0

[Event "Warsaw Chess Open-B 2022"]
[Site "Warsaw"]
[Date "2022.07.19"]
[Round "2.5"]
[White "Pierzak, Rafael"]
[Black "Trybula, Agata"]
[Result "1/2-1/2"]
[ECO "A10"]
[WhiteElo "1909"]
[BlackElo "1568"]
[Annotator "TA"]
[PlyCount "37"]
[EventDate "2022.07.18"]
[EventType "swiss"]
[EventCountry "POL"]
[SourceTitle "playchess.com"]
[Source "ChessBase"]
[SourceQuality "1"]
[TimeControl "40/5400+30:1800+30"]

{[%evp 13,37,15,33,17,22,-13,-6,-5,10,0,23,0,13,-25,6,0,0,-17,-7,-16,-17,-22,-24,-34,-45,-63]} 1. c4 {[%emt 0:00:07]} d6 {[%emt 0:00:19]} 2. Nc3 {[%emt 0:00:13]} Nf6 {[%emt 0:00:29]} 3. g3 {[%emt 0:00:10]} e5 {[%emt 0:00:24]} 4. Bg2 {[%emt 0:00:16]} c6 {[%emt 0:00:24]} 5. d3 {[%emt 0:01:08]} Be7 {[%emt 0:00:35]} 6. Nf3 {[%emt 0:00:09]} O-O {[%emt 0:00:28]} 7. O-O {[%emt 0:00:06]} Na6 {[%emt 0:02:41][%cal Bb8a6,Ba6c7,Bc7d5][%mdl 32]} 8. a3 {[%emt 0:05:04] A22: English Opening: 1...e5 2 Nc3 Nf6.} Nc7 {[%emt 0:00:42]} 9. c5 {[%emt 0:03:06]} Re8 {[%emt 0:06:15]} 10. cxd6 {[%emt 0:00:16] The position is equal.} Bxd6 {[%emt 0:00:23]} 11. Qc2 {[%emt 0:02:09] [#]} Ncd5 $146 {[%emt 0:07:15]} ({Predecessor:} 11... h6 12. Rd1 Qe7 13. h3 Ncd5 14. e4 Nxc3 15. bxc3 Qc7 16. d4 Nh7 17. dxe5 Bxe5 18. Nxe5 Qxe5 {0-1 (67) Gunnarsson,A (2282)-Thorsteinsson,T (2332) Seltjarnarnes 2002}) 12. Nd2 {[%emt 0:07:50]} Bf8 {[%emt 0:06:44]} 13. Nde4 {[%emt 0:02:05]} Bf5 {[%emt 0:11:42]} 14. Bg5 {[%emt 0:25:00]} h6 {[%emt 0:06:45]} 15. Bd2 {[%emt 0:11:07]} Rc8 {[%emt 0:09:30]} 16. Qb3 {[%emt 0:09:37]} b6 {[%emt 0:06:21]} 17. Nxd5 {[%emt 0:03:07]} Nxd5 {[%emt 0:03:25]} 18. Rac1 {[%emt 0:01:45]} Qd7 {[%emt 0:02:22]} 19. Nc3 {[%emt 0:02:28] Weighted Error Value: White=0.15 (very precise) /Black=0.09 (flawless)} 1/2-1/2